[Event "Early-Titled-Tuesday-Blitz-October-03-2023"]
[Site "Chess.com"]
[Date "2023.10.03"]
[Round "3"]
[White "zajka-molotok"]
[Black "chesskov1982"]
[Result "0-1"]
[WhiteElo "2584"]
[BlackElo "2825"]
[TimeControl "180+1"]
[EndTime "8:28:26 PDT"]
[Termination "chesskov1982 won by resignation"]

1. e4 {[%clk 0:03:00.9]} 1... c6 {[%clk 0:02:50.6]} 2. d4 {[%clk 0:03:00.4]}
2... d5 {[%clk 0:02:51.5]} 3. exd5 {[%clk 0:03:00.9]} 3... cxd5 {[%clk
0:02:52.4]} 4. Bd3 {[%clk 0:03:00.8]} 4... Nc6 {[%clk 0:02:49]} 5. c3 {[%clk
0:03:00.3]} 5... Nf6 {[%clk 0:02:41.6]} 6. h3 {[%clk 0:02:59.9]} 6... g6 {[%clk
0:02:31.7]} 7. Nf3 {[%clk 0:02:59.3]} 7... Bg7 {[%clk 0:02:25.5]} 8. O-O {[%clk
0:02:58.6]} 8... O-O {[%clk 0:02:25.5]} 9. Re1 {[%clk 0:02:55]} 9... Bf5 {[%clk
0:02:23.7]} 10. Bf1 {[%clk 0:02:54.2]} 10... a6 {[%clk 0:02:22.8]} 11. Bf4
{[%clk 0:02:48.1]} 11... b5 {[%clk 0:02:15.3]} 12. a3 {[%clk 0:02:43.1]} 12...
Na5 {[%clk 0:02:13]} 13. Nbd2 {[%clk 0:02:40.9]} 13... Nc4 {[%clk 0:02:11.1]}
14. Qc1 {[%clk 0:02:29]} 14... Re8 {[%clk 0:02:07.8]} 15. Nb3 {[%clk 0:02:23.6]}
15... Ne4 {[%clk 0:02:03.5]} 16. Bh2 {[%clk 0:01:49.4]} 16... a5 {[%clk
0:01:56.7]} 17. Ne5 {[%clk 0:01:14.8]} 17... Qb6 {[%clk 0:01:46.4]} 18. Nd3
{[%clk 0:00:59.6]} 18... a4 {[%clk 0:01:43]} 19. Nbc5 {[%clk 0:00:58.5]} 19...
Nxc5 {[%clk 0:01:40.5]} 20. Nxc5 {[%clk 0:00:59.4]} 20... e5 {[%clk 0:01:37.8]}
21. g4 {[%clk 0:00:38.1]} 21... exd4 {[%clk 0:01:32.7]} 22. gxf5 {[%clk
0:00:27.3]} 22... Qxc5 {[%clk 0:01:22.4]} 23. Bxc4 {[%clk 0:00:17.5]} 23... dxc4
{[%clk 0:01:03.8]} 24. fxg6 {[%clk 0:00:16.8]} 24... hxg6 {[%clk 0:00:58.1]} 25.
Qd2 {[%clk 0:00:15.6]} 25... dxc3 {[%clk 0:00:56.1]} 26. bxc3 {[%clk 0:00:15.3]}
26... Bf6 {[%clk 0:00:53.7]} 27. Rxe8+ {[%clk 0:00:13.9]} 27... Rxe8 {[%clk
0:00:52.8]} 28. Bf4 {[%clk 0:00:13.9]} 28... Qf5 {[%clk 0:00:50.5]} 29. Kh2
{[%clk 0:00:12.5]} 29... Bxc3 {[%clk 0:00:43.2]} 30. Qxc3 {[%clk 0:00:11.6]}
30... Qxf4+ {[%clk 0:00:43.4]} 31. Qg3 {[%clk 0:00:12.2]} 31... Qxg3+ {[%clk
0:00:40.5]} 32. Kxg3 {[%clk 0:00:13.1]} 32... Rd8 {[%clk 0:00:25.3]} 33. Rb1
{[%clk 0:00:11.8]} 33... Rd3+ {[%clk 0:00:25.4]} 34. Kf4 {[%clk 0:00:11.2]}
34... Rb3 {[%clk 0:00:26.3]} 35. Rc1 {[%clk 0:00:10.5]} 35... Rxa3 {[%clk
0:00:24.7]} 0-1

[Event "Early-Titled-Tuesday-Blitz-October-03-2023"]
[Site "Chess.com"]
[Date "2023.10.03"]
[Round "3"]
[White "LoydBlankenship"]
[Black "AjedrezenMadrid"]
[Result "0-1"]
[WhiteElo "2637"]
[BlackElo "2475"]
[TimeControl "180+1"]
[EndTime "8:28:27 PDT"]
[Termination "AjedrezenMadrid won by resignation"]

1. e4 {[%clk 0:02:57.2]} 1... c5 {[%clk 0:02:57.3]} 2. Nf3 {[%clk 0:02:57.5]}
2... e6 {[%clk 0:02:56.9]} 3. d4 {[%clk 0:02:58.2]} 3... cxd4 {[%clk 0:02:56.9]}
4. Nxd4 {[%clk 0:02:59.1]} 4... Nc6 {[%clk 0:02:57.2]} 5. Nc3 {[%clk 0:02:57]}
5... Qc7 {[%clk 0:02:56.9]} 6. Be3 {[%clk 0:02:57.3]} 6... a6 {[%clk 0:02:57.1]}
7. f3 {[%clk 0:02:57.8]} 7... Nf6 {[%clk 0:02:52.9]} 8. Qd2 {[%clk 0:02:58]}
8... Be7 {[%clk 0:02:51.9]} 9. O-O-O {[%clk 0:02:57.9]} 9... b5 {[%clk
0:02:51.5]} 10. g4 {[%clk 0:02:58.3]} 10... Nxd4 {[%clk 0:02:49.1]} 11. Qxd4
{[%clk 0:02:56.4]} 11... Bb7 {[%clk 0:02:46.9]} 12. h4 {[%clk 0:02:54.2]} 12...
Rc8 {[%clk 0:02:39.4]} 13. Rd2 {[%clk 0:02:39.4]} 13... b4 {[%clk 0:02:35.1]}
14. Ne2 {[%clk 0:02:39]} 14... d5 {[%clk 0:02:34.9]} 15. e5 {[%clk 0:02:38]}
15... Nd7 {[%clk 0:02:32.4]} 16. f4 {[%clk 0:02:38.2]} 16... Bc5 {[%clk
0:02:27.5]} 17. Qd3 {[%clk 0:02:38.6]} 17... Bxe3 {[%clk 0:02:26.5]} 18. Qxe3
{[%clk 0:02:37.2]} 18... d4 {[%clk 0:02:26.6]} 19. Qh3 {[%clk 0:02:29.8]} 19...
d3 {[%clk 0:02:06.6]} 20. Nd4 {[%clk 0:02:27.9]} 20... Bxh1 {[%clk 0:01:55.1]}
21. Qxh1 {[%clk 0:02:28.8]} 21... Qc4 {[%clk 0:01:32.7]} 22. Qg1 {[%clk
0:01:42.2]} 22... Qxa2 {[%clk 0:01:23.6]} 23. Rxd3 {[%clk 0:01:42.1]} 23... Qa1+
{[%clk 0:01:17.1]} 24. Kd2 {[%clk 0:01:41.8]} 24... Qxb2 {[%clk 0:01:17.2]} 25.
Nb3 {[%clk 0:01:39.8]} 25... Rxc2+ {[%clk 0:01:15.1]} 26. Ke3 {[%clk 0:01:39.7]}
26... Nxe5 {[%clk 0:01:01.8]} 27. fxe5 {[%clk 0:01:36.7]} 27... Qxe5+ {[%clk
0:01:01.3]} 28. Kf3 {[%clk 0:01:37.1]} 28... O-O {[%clk 0:00:44.5]} 29. Re3
{[%clk 0:01:18.9]} 29... Qd5+ {[%clk 0:00:42.2]} 30. Kg3 {[%clk 0:01:19.1]}
30... Rc3 {[%clk 0:00:30.4]} 31. Rxc3 {[%clk 0:01:11.2]} 31... bxc3 {[%clk
0:00:30]} 32. Nc1 {[%clk 0:01:10.8]} 32... Qe5+ {[%clk 0:00:24.2]} 33. Kh3
{[%clk 0:01:08.4]} 33... Rd8 {[%clk 0:00:22.9]} 34. Qb6 {[%clk 0:01:04.1]} 34...
Qf6 {[%clk 0:00:13.8]} 35. Be2 {[%clk 0:01:02.1]} 35... h5 {[%clk 0:00:13]} 36.
Qe3 {[%clk 0:00:56]} 36... hxg4+ {[%clk 0:00:13]} 37. Kxg4 {[%clk 0:00:56.6]}
37... Rd4+ {[%clk 0:00:13.2]} 38. Kg3 {[%clk 0:00:55.7]} 38... Qxh4+ {[%clk
0:00:12.5]} 39. Kg2 {[%clk 0:00:56.3]} 39... g5 {[%clk 0:00:12.5]} 40. Nd3
{[%clk 0:00:56.1]} 40... Re4 {[%clk 0:00:11.8]} 41. Qf3 {[%clk 0:00:54.4]} 41...
c2 {[%clk 0:00:12.2]} 42. Nf2 {[%clk 0:00:49.7]} 42... Rf4 {[%clk 0:00:11.5]}
43. Qe3 {[%clk 0:00:48]} 43... Qxf2+ {[%clk 0:00:11.3]} 44. Qxf2 {[%clk
0:00:48.1]} 44... Rxf2+ {[%clk 0:00:12.2]} 45. Kxf2 {[%clk 0:00:49]} 45... c1=Q
{[%clk 0:00:13]} 0-1

[Event "Early-Titled-Tuesday-Blitz-October-03-2023"]
[Site "Chess.com"]
[Date "2023.10.03"]
[Round "3"]
[White "familijatop71"]
[Black "elamier"]
[Result "0-1"]
[WhiteElo "2209"]
[BlackElo "2406"]
[TimeControl "180+1"]
[EndTime "8:28:27 PDT"]
[Termination "elamier won by resignation"]

1. e4 {[%clk 0:03:00.9]} 1... c5 {[%clk 0:02:59.9]} 2. c3 {[%clk 0:02:58.4]}
2... Nf6 {[%clk 0:02:58.2]} 3. e5 {[%clk 0:02:57.6]} 3... Nd5 {[%clk 0:02:58.5]}
4. Nf3 {[%clk 0:02:57.5]} 4... d6 {[%clk 0:02:57.7]} 5. d4 {[%clk 0:02:56.7]}
5... cxd4 {[%clk 0:02:57]} 6. exd6 {[%clk 0:02:55.8]} 6... e6 {[%clk 0:02:56.4]}
7. Nxd4 {[%clk 0:02:55.7]} 7... Bxd6 {[%clk 0:02:56]} 8. g3 {[%clk 0:02:55.8]}
8... Nc6 {[%clk 0:02:56]} 9. Nxc6 {[%clk 0:02:50.6]} 9... bxc6 {[%clk
0:02:55.9]} 10. Bg2 {[%clk 0:02:51.1]} 10... O-O {[%clk 0:02:44]} 11. O-O {[%clk
0:02:51.2]} 11... Qc7 {[%clk 0:02:37.7]} 12. Nd2 {[%clk 0:02:50.4]} 12... e5
{[%clk 0:02:35.5]} 13. Ne4 {[%clk 0:02:50]} 13... Be7 {[%clk 0:02:33.6]} 14. c4
{[%clk 0:02:47.3]} 14... Nf6 {[%clk 0:02:30.7]} 15. Nxf6+ {[%clk 0:02:31]} 15...
Bxf6 {[%clk 0:02:30.6]} 16. Qe2 {[%clk 0:02:28.7]} 16... Be6 {[%clk 0:02:17.1]}
17. Be3 {[%clk 0:02:25.8]} 17... Rab8 {[%clk 0:02:10.8]} 18. b3 {[%clk
0:02:18.5]} 18... Rfd8 {[%clk 0:02:06.6]} 19. Rad1 {[%clk 0:02:17.2]} 19... a5
{[%clk 0:01:47.4]} 20. Qf3 {[%clk 0:02:10]} 20... c5 {[%clk 0:01:37.1]} 21.
Rxd8+ {[%clk 0:02:09.1]} 21... Rxd8 {[%clk 0:01:36.9]} 22. Rd1 {[%clk
0:02:08.1]} 22... Rxd1+ {[%clk 0:00:47.5]} 23. Qxd1 {[%clk 0:02:09]} 23... a4
{[%clk 0:00:48.2]} 24. Bd5 {[%clk 0:01:40.9]} 24... Bxd5 {[%clk 0:00:29.4]} 25.
Qxd5 {[%clk 0:01:39.1]} 25... axb3 {[%clk 0:00:25.5]} 26. axb3 {[%clk
0:01:34.7]} 26... h6 {[%clk 0:00:19.3]} 27. Qxc5 {[%clk 0:01:34.1]} 27... Qb7
{[%clk 0:00:18.9]} 28. b4 {[%clk 0:01:22.4]} 28... Qe4 {[%clk 0:00:17.8]} 29.
Qc8+ {[%clk 0:01:19.6]} 29... Kh7 {[%clk 0:00:17]} 30. b5 {[%clk 0:00:38.5]}
30... Qb1+ {[%clk 0:00:15.9]} 31. Kg2 {[%clk 0:00:39.1]} 31... Qe4+ {[%clk
0:00:16.6]} 32. Kf1 {[%clk 0:00:33.5]} 32... Qb1+ {[%clk 0:00:13]} 33. Ke2
{[%clk 0:00:32.8]} 33... Qc2+ {[%clk 0:00:11.1]} 34. Bd2 {[%clk 0:00:31]} 34...
Bg5 {[%clk 0:00:07.8]} 35. Qf5+ {[%clk 0:00:30.6]} 35... Qxf5 {[%clk 0:00:07.4]}
0-1

[Event "Early-Titled-Tuesday-Blitz-October-03-2023"]
[Site "Chess.com"]
[Date "2023.10.03"]
[Round "3"]
[White "ajedrez-facil"]
[Black "QuintilianoR"]
[Result "0-1"]
[WhiteElo "2274"]
[BlackElo "2657"]
[TimeControl "180+1"]
[EndTime "8:28:28 PDT"]
[Termination "QuintilianoR won by resignation"]

1. e4 {[%clk 0:03:00.9]} 1... c5 {[%clk 0:02:55.6]} 2. Nf3 {[%clk 0:02:59.9]}
2... d6 {[%clk 0:02:55.9]} 3. d4 {[%clk 0:02:59.9]} 3... cxd4 {[%clk 0:02:56.8]}
4. Qxd4 {[%clk 0:03:00.4]} 4... a6 {[%clk 0:02:53.1]} 5. Bc4 {[%clk 0:02:59.7]}
5... Nc6 {[%clk 0:02:51.6]} 6. Qd3 {[%clk 0:02:59.7]} 6... Nf6 {[%clk
0:02:44.1]} 7. Nc3 {[%clk 0:02:59.5]} 7... g6 {[%clk 0:02:43.6]} 8. Bg5 {[%clk
0:02:56.8]} 8... Bg7 {[%clk 0:02:43.3]} 9. Rd1 {[%clk 0:02:57.1]} 9... Nd7
{[%clk 0:02:25.8]} 10. Bb3 {[%clk 0:02:53.4]} 10... Nc5 {[%clk 0:02:19.5]} 11.
Qe2 {[%clk 0:02:46.6]} 11... Nxb3 {[%clk 0:02:18.5]} 12. axb3 {[%clk 0:02:47.5]}
12... h6 {[%clk 0:02:18.2]} 13. Be3 {[%clk 0:02:41.7]} 13... O-O {[%clk
0:02:17.2]} 14. O-O {[%clk 0:02:41.3]} 14... b5 {[%clk 0:02:11.7]} 15. Qd2
{[%clk 0:02:38.8]} 15... Kh7 {[%clk 0:02:11.5]} 16. Nd4 {[%clk 0:02:39]} 16...
Ne5 {[%clk 0:02:00.6]} 17. f3 {[%clk 0:02:28.3]} 17... Bb7 {[%clk 0:01:59.6]}
18. Nde2 {[%clk 0:02:20.6]} 18... Rc8 {[%clk 0:01:56.2]} 19. Rc1 {[%clk
0:02:09.5]} 19... b4 {[%clk 0:01:45.2]} 20. Nd5 {[%clk 0:02:06.2]} 20... Bxd5
{[%clk 0:01:37.3]} 21. Qxd5 {[%clk 0:02:07.1]} 21... Qc7 {[%clk 0:01:29.2]} 22.
c3 {[%clk 0:02:03.5]} 22... Qb8 {[%clk 0:01:08]} 23. c4 {[%clk 0:01:59.7]} 23...
Nc6 {[%clk 0:00:59.6]} 24. Qd2 {[%clk 0:01:57.5]} 24... Na5 {[%clk 0:00:55.6]}
25. Qc2 {[%clk 0:01:50.9]} 25... Nb7 {[%clk 0:00:54.7]} 26. Ra1 {[%clk
0:01:47.8]} 26... a5 {[%clk 0:00:51.7]} 27. Nd4 {[%clk 0:01:44.4]} 27... e6
{[%clk 0:00:44.5]} 28. Nb5 {[%clk 0:01:43.4]} 28... d5 {[%clk 0:00:44.6]} 29.
exd5 {[%clk 0:01:41.8]} 29... exd5 {[%clk 0:00:44.7]} 30. Ba7 {[%clk 0:01:19.5]}
30... Qa8 {[%clk 0:00:44.1]} 31. Bf2 {[%clk 0:01:07.1]} 31... dxc4 {[%clk
0:00:44]} 32. bxc4 {[%clk 0:01:06.8]} 32... Qa6 {[%clk 0:00:41.9]} 33. Rac1
{[%clk 0:01:05.1]} 33... a4 {[%clk 0:00:40.6]} 34. Kh1 {[%clk 0:00:52.4]} 34...
b3 {[%clk 0:00:39.5]} 35. Qb1 {[%clk 0:00:42.4]} 35... Na5 {[%clk 0:00:38.4]}
36. Na3 {[%clk 0:00:42.2]} 36... Nxc4 {[%clk 0:00:28.9]} 37. Qd3 {[%clk
0:00:41.2]} 37... Rfd8 {[%clk 0:00:28.5]} 38. Qe2 {[%clk 0:00:39.4]} 38... Rd2
{[%clk 0:00:28.6]} 39. Qe7 {[%clk 0:00:27.9]} 39... Nxa3 {[%clk 0:00:26.4]} 40.
Rxc8 {[%clk 0:00:22.2]} 40... Qxf1+ {[%clk 0:00:25.7]} 0-1

[Event "Early-Titled-Tuesday-Blitz-October-03-2023"]
[Site "Chess.com"]
[Date "2023.10.03"]
[Round "3"]
[White "Mihajlovskij"]
[Black "hypert"]
[Result "0-1"]
[WhiteElo "2289"]
[BlackElo "2534"]
[TimeControl "180+1"]
[EndTime "8:28:30 PDT"]
[Termination "hypert won by resignation"]

1. e4 {[%clk 0:03:00.9]} 1... c5 {[%clk 0:02:59.3]} 2. Nf3 {[%clk 0:02:51.4]}
2... d6 {[%clk 0:02:55.3]} 3. d4 {[%clk 0:02:50.7]} 3... cxd4 {[%clk 0:02:56.2]}
4. Qxd4 {[%clk 0:02:51.2]} 4... Nf6 {[%clk 0:02:56.8]} 5. Bg5 {[%clk 0:02:49.3]}
5... a6 {[%clk 0:02:53.4]} 6. Bc4 {[%clk 0:02:47.7]} 6... e6 {[%clk 0:02:50.5]}
7. Nc3 {[%clk 0:02:47.2]} 7... Nbd7 {[%clk 0:02:47.4]} 8. O-O-O {[%clk
0:02:44.9]} 8... Qa5 {[%clk 0:02:44.2]} 9. Rhe1 {[%clk 0:02:39.9]} 9... Be7
{[%clk 0:02:33]} 10. e5 {[%clk 0:02:31.6]} 10... dxe5 {[%clk 0:02:21.6]} 11.
Nxe5 {[%clk 0:02:30.4]} 11... Nb6 {[%clk 0:02:01.1]} 12. Ng4 {[%clk 0:02:10.6]}
12... Qxg5+ {[%clk 0:01:50.4]} 13. f4 {[%clk 0:02:10.4]} 13... Qc5 {[%clk
0:01:47.8]} 14. Nxf6+ {[%clk 0:02:08.5]} 14... gxf6 {[%clk 0:01:48.7]} 15. Qxc5
{[%clk 0:02:06.8]} 15... Bxc5 {[%clk 0:01:48]} 16. Bb3 {[%clk 0:02:01.2]} 16...
f5 {[%clk 0:01:43.2]} 17. a4 {[%clk 0:01:57.7]} 17... Bb4 {[%clk 0:01:37.4]} 18.
Re3 {[%clk 0:01:57.8]} 18... Bxc3 {[%clk 0:01:31.3]} 19. Rxc3 {[%clk 0:01:58.7]}
19... Bd7 {[%clk 0:01:27.2]} 20. a5 {[%clk 0:01:52.3]} 20... Nc8 {[%clk
0:01:10.3]} 21. Rcd3 {[%clk 0:01:40.4]} 21... Ne7 {[%clk 0:00:38.8]} 22. Rxd7
{[%clk 0:01:39.9]} 22... Nc6 {[%clk 0:00:38.2]} 23. Rxb7 {[%clk 0:01:36]} 23...
O-O {[%clk 0:00:34]} 24. Ba2 {[%clk 0:01:24.3]} 24... Nxa5 {[%clk 0:00:27.1]}
25. Rc7 {[%clk 0:01:20]} 25... Rfc8 {[%clk 0:00:23.4]} 26. Rdd7 {[%clk
0:01:18.5]} 26... Rxc7 {[%clk 0:00:15.3]} 27. Rxc7 {[%clk 0:01:18.6]} 27... Rb8
{[%clk 0:00:08.9]} 28. h3 {[%clk 0:01:10.1]} 28... Nb7 {[%clk 0:00:07.5]} 29. g4
{[%clk 0:01:06.4]} 29... fxg4 {[%clk 0:00:07.4]} 30. hxg4 {[%clk 0:01:07.3]}
30... a5 {[%clk 0:00:07.7]} 31. f5 {[%clk 0:01:07.5]} 31... Nd6 {[%clk
0:00:06.4]} 32. fxe6 {[%clk 0:01:05.9]} 32... fxe6 {[%clk 0:00:07.3]} 33. Bxe6+
{[%clk 0:01:05.8]} 33... Kh8 {[%clk 0:00:07.8]} 34. Rc5 {[%clk 0:01:03.2]} 34...
a4 {[%clk 0:00:07.4]} 35. Ra5 {[%clk 0:01:01.6]} 35... Re8 {[%clk 0:00:07.4]}
36. Bd7 {[%clk 0:00:56.1]} 36... Re1+ {[%clk 0:00:06.2]} 37. Kd2 {[%clk
0:00:56.4]} 37... Re7 {[%clk 0:00:07.1]} 38. Bf5 {[%clk 0:00:53.1]} 38... Nc4+
{[%clk 0:00:06.8]} 39. Kc3 {[%clk 0:00:49.2]} 39... Nxa5 {[%clk 0:00:07.7]} 40.
Kb4 {[%clk 0:00:50.1]} 40... Nc6+ {[%clk 0:00:07.7]} 41. Kxa4 {[%clk 0:00:51]}
41... Rb7 {[%clk 0:00:08.1]} 42. Be4 {[%clk 0:00:48.9]} 42... Rb4+ {[%clk
0:00:08.1]} 0-1

[Event "Early-Titled-Tuesday-Blitz-October-03-2023"]
[Site "Chess.com"]
[Date "2023.10.03"]
[Round "3"]
[White "NodariousBIG"]
[Black "Dixit_Nikhil"]
[Result "0-1"]
[WhiteElo "2832"]
[BlackElo "2641"]
[TimeControl "180+1"]
[EndTime "8:28:31 PDT"]
[Termination "Dixit_Nikhil won by resignation"]

1. e4 {[%clk 0:03:00.9]} 1... c5 {[%clk 0:02:58.2]} 2. c3 {[%clk 0:03:00.9]}
2... e6 {[%clk 0:02:57.3]} 3. d4 {[%clk 0:03:01]} 3... d5 {[%clk 0:02:57.8]} 4.
e5 {[%clk 0:02:59.5]} 4... Nc6 {[%clk 0:02:57.7]} 5. Nf3 {[%clk 0:02:59.9]} 5...
Bd7 {[%clk 0:02:58.2]} 6. a3 {[%clk 0:02:58.7]} 6... c4 {[%clk 0:02:57.8]} 7. h4
{[%clk 0:02:56.8]} 7... Na5 {[%clk 0:02:57.9]} 8. Nbd2 {[%clk 0:02:54.8]} 8...
Bc6 {[%clk 0:02:58.2]} 9. h5 {[%clk 0:02:54.6]} 9... Qd7 {[%clk 0:02:58.6]} 10.
g3 {[%clk 0:02:54.6]} 10... Ne7 {[%clk 0:02:56.4]} 11. Bh3 {[%clk 0:02:53.5]}
11... Nc8 {[%clk 0:02:53.2]} 12. O-O {[%clk 0:02:42.7]} 12... g6 {[%clk
0:02:45.5]} 13. Nh2 {[%clk 0:02:37.9]} 13... Ba4 {[%clk 0:02:40]} 14. Qf3 {[%clk
0:02:27.2]} 14... Bc2 {[%clk 0:02:26.9]} 15. Ng4 {[%clk 0:02:24.6]} 15... Be7
{[%clk 0:02:27.2]} 16. Nf6+ {[%clk 0:02:22.9]} 16... Bxf6 {[%clk 0:02:27.1]} 17.
Qxf6 {[%clk 0:02:23.6]} 17... Rf8 {[%clk 0:02:26.3]} 18. Nf3 {[%clk 0:02:21.7]}
18... Nb3 {[%clk 0:02:20.5]} 19. Bh6 {[%clk 0:02:22.1]} 19... Qe7 {[%clk
0:02:08.9]} 20. Bxf8 {[%clk 0:02:01.1]} 20... Qxf6 {[%clk 0:01:54.1]} 21. exf6
{[%clk 0:02:01.4]} 21... Kxf8 {[%clk 0:01:54.8]} 22. Rae1 {[%clk 0:01:59.5]}
22... Nd6 {[%clk 0:01:52.8]} 23. Ng5 {[%clk 0:01:46.5]} 23... gxh5 {[%clk
0:01:48.4]} 24. Bxe6 {[%clk 0:01:26]} 24... fxe6 {[%clk 0:01:43.3]} 25. Nxe6+
{[%clk 0:01:26.4]} 25... Kf7 {[%clk 0:01:41.1]} 26. Nc7 {[%clk 0:01:26.9]} 26...
Rd8 {[%clk 0:01:18.1]} 27. Nxd5 {[%clk 0:01:16]} 27... Nf5 {[%clk 0:01:18.1]}
28. Re5 {[%clk 0:01:03.4]} 28... Nd2 {[%clk 0:01:08]} 29. Ne7 {[%clk 0:00:24.6]}
29... Nf3+ {[%clk 0:00:51.3]} 30. Kg2 {[%clk 0:00:24.3]} 30... Nxe5 {[%clk
0:00:51.9]} 31. Nxf5 {[%clk 0:00:21.9]} 31... Ng6 {[%clk 0:00:44.2]} 32. Ne3
{[%clk 0:00:20.2]} 32... Be4+ {[%clk 0:00:44.5]} 33. f3 {[%clk 0:00:20.2]} 33...
Bd3 {[%clk 0:00:45.2]} 34. Rh1 {[%clk 0:00:20.7]} 34... Kxf6 {[%clk 0:00:45.2]}
35. Rxh5 {[%clk 0:00:21]} 35... Re8 {[%clk 0:00:45.8]} 36. Kf2 {[%clk
0:00:21.4]} 36... Kg7 {[%clk 0:00:44.5]} 37. Ra5 {[%clk 0:00:21.4]} 37... a6
{[%clk 0:00:44.5]} 38. Rc5 {[%clk 0:00:21.8]} 38... Re7 {[%clk 0:00:44.1]} 39.
d5 {[%clk 0:00:22.1]} 39... Rd7 {[%clk 0:00:41.9]} 40. d6 {[%clk 0:00:18.3]}
40... Rxd6 {[%clk 0:00:39.8]} 41. Rc6 {[%clk 0:00:18.6]} 41... Rxc6 {[%clk
0:00:39.7]} 0-1

[Event "Early-Titled-Tuesday-Blitz-October-03-2023"]
[Site "Chess.com"]
[Date "2023.10.03"]
[Round "3"]
[White "dadice10"]
[Black "Zq1"]
[Result "0-1"]
[WhiteElo "2166"]
[BlackElo "2520"]
[TimeControl "180+1"]
[EndTime "8:28:38 PDT"]
[Termination "Zq1 won on time"]

1. e4 {[%clk 0:03:00.9]} 1... c5 {[%clk 0:02:59.1]} 2. Nc3 {[%clk 0:02:59.4]}
2... g6 {[%clk 0:02:58]} 3. d4 {[%clk 0:02:58]} 3... cxd4 {[%clk 0:02:56.9]} 4.
Qxd4 {[%clk 0:02:58.9]} 4... Nf6 {[%clk 0:02:56.3]} 5. Be3 {[%clk 0:02:58.8]}
5... Nc6 {[%clk 0:02:55.8]} 6. Qd2 {[%clk 0:02:57.9]} 6... d6 {[%clk 0:02:52.7]}
7. f3 {[%clk 0:02:56.3]} 7... Bg7 {[%clk 0:02:47.3]} 8. Nge2 {[%clk 0:02:56]}
8... Bd7 {[%clk 0:02:44.9]} 9. Nf4 {[%clk 0:02:55.5]} 9... Rc8 {[%clk
0:02:42.8]} 10. h4 {[%clk 0:02:54.2]} 10... h5 {[%clk 0:02:40.7]} 11. O-O-O
{[%clk 0:02:53.4]} 11... b6 {[%clk 0:02:32.3]} 12. Ba6 {[%clk 0:02:43.3]} 12...
Rb8 {[%clk 0:02:30.7]} 13. Bb5 {[%clk 0:02:38.4]} 13... Ne5 {[%clk 0:02:28.8]}
14. b3 {[%clk 0:02:30.3]} 14... Bxb5 {[%clk 0:02:23.4]} 15. Nxb5 {[%clk
0:02:31.2]} 15... a6 {[%clk 0:02:21]} 16. Nd4 {[%clk 0:02:28.3]} 16... b5 {[%clk
0:02:19.7]} 17. Kb1 {[%clk 0:02:27.2]} 17... b4 {[%clk 0:02:12]} 18. Nd5 {[%clk
0:02:21.4]} 18... Nxd5 {[%clk 0:01:50.6]} 19. exd5 {[%clk 0:02:22.3]} 19... Qc7
{[%clk 0:01:48]} 20. f4 {[%clk 0:02:06.7]} 20... Ng4 {[%clk 0:01:47.1]} 21. Nc6
{[%clk 0:02:06.1]} 21... Rb5 {[%clk 0:01:40.5]} 22. Rhe1 {[%clk 0:01:45.7]}
22... Bc3 {[%clk 0:01:37.7]} 23. Qd3 {[%clk 0:01:38.5]} 23... Bxe1 {[%clk
0:01:36.1]} 24. Rxe1 {[%clk 0:01:39.4]} 24... O-O {[%clk 0:01:27.4]} 25. Bc1
{[%clk 0:01:38.2]} 25... e6 {[%clk 0:01:22.4]} 26. Bb2 {[%clk 0:01:29.9]} 26...
Rxd5 {[%clk 0:01:21.4]} 27. Ne7+ {[%clk 0:01:29.4]} 27... Qxe7 {[%clk
0:01:16.7]} 28. Qxd5 {[%clk 0:01:29]} 28... Qxh4 {[%clk 0:01:10.9]} 29. Qd1
{[%clk 0:01:10.9]} 29... Qf2 {[%clk 0:01:03.9]} 30. a3 {[%clk 0:00:31.1]} 30...
a5 {[%clk 0:01:00.1]} 31. axb4 {[%clk 0:00:19.4]} 31... axb4 {[%clk 0:00:59.8]}
32. Rf1 {[%clk 0:00:16.1]} 32... Ne3 {[%clk 0:00:44.8]} 33. Rxf2 {[%clk
0:00:10.4]} 33... Nxd1 {[%clk 0:00:44.3]} 34. Rd2 {[%clk 0:00:10.9]} 34... Nxb2
{[%clk 0:00:44]} 35. Rxd6 {[%clk 0:00:10.5]} 35... Nc4 {[%clk 0:00:42.4]} 36.
bxc4 {[%clk 0:00:09.7]} 36... Rc8 {[%clk 0:00:41.8]} 37. Rd4 {[%clk 0:00:07.2]}
37... Kf8 {[%clk 0:00:38.3]} 38. Kb2 {[%clk 0:00:06.5]} 38... Ke7 {[%clk
0:00:38.2]} 39. Kb3 {[%clk 0:00:06.7]} 39... h4 {[%clk 0:00:37.7]} 40. Kxb4
{[%clk 0:00:03.1]} 40... Rb8+ {[%clk 0:00:37.9]} 41. Kc3 {[%clk 0:00:02.3]}
41... Rc8 {[%clk 0:00:36.3]} 42. Kb4 {[%clk 0:00:01.4]} 42... f6 {[%clk
0:00:34.7]} 0-1

[Event "Early-Titled-Tuesday-Blitz-October-03-2023"]
[Site "Chess.com"]
[Date "2023.10.03"]
[Round "3"]
[White "Nbk90"]
[Black "guillembaches"]
[Result "0-1"]
[WhiteElo "2115"]
[BlackElo "2514"]
[TimeControl "180+1"]
[EndTime "8:28:42 PDT"]
[Termination "guillembaches won by resignation"]

1. e4 {[%clk 0:02:55.3]} 1... d5 {[%clk 0:02:59.6]} 2. exd5 {[%clk 0:02:54.8]}
2... Qxd5 {[%clk 0:03:00.5]} 3. Nc3 {[%clk 0:02:55.2]} 3... Qa5 {[%clk
0:03:00.4]} 4. d4 {[%clk 0:02:54.3]} 4... Nf6 {[%clk 0:03:00.1]} 5. Nf3 {[%clk
0:02:53]} 5... Bf5 {[%clk 0:02:59.7]} 6. Bc4 {[%clk 0:02:47.7]} 6... e6 {[%clk
0:02:57.4]} 7. Bd2 {[%clk 0:02:28.9]} 7... Bb4 {[%clk 0:02:56.4]} 8. a3 {[%clk
0:02:27.2]} 8... Bxc3 {[%clk 0:02:56]} 9. Bxc3 {[%clk 0:02:25.8]} 9... Qb6
{[%clk 0:02:56]} 10. O-O {[%clk 0:02:07.1]} 10... Nc6 {[%clk 0:02:51.4]} 11. b4
{[%clk 0:01:45.6]} 11... O-O-O {[%clk 0:02:42.2]} 12. Qe2 {[%clk 0:01:24.1]}
12... Bg4 {[%clk 0:02:15.9]} 13. Rad1 {[%clk 0:00:57.3]} 13... Bxf3 {[%clk
0:02:00.7]} 14. Qxf3 {[%clk 0:00:55.8]} 14... Nxd4 {[%clk 0:01:59.4]} 15. Qd3
{[%clk 0:00:51.4]} 15... Nb5 {[%clk 0:01:45.2]} 16. Qg3 {[%clk 0:00:46.6]} 16...
Ne4 {[%clk 0:01:28.6]} 17. Qxg7 {[%clk 0:00:35.9]} 17... Nbxc3 {[%clk
0:01:24.6]} 18. Rxd8+ {[%clk 0:00:31.3]} 18... Rxd8 {[%clk 0:01:25.5]} 19. Qxf7
{[%clk 0:00:31.2]} 19... Nd5 {[%clk 0:01:00.5]} 20. Bd3 {[%clk 0:00:18.7]} 20...
Nef6 {[%clk 0:00:51.6]} 21. Bxh7 {[%clk 0:00:16.1]} 21... Nxh7 {[%clk
0:00:45.5]} 22. Qxh7 {[%clk 0:00:15.4]} 22... Qd4 {[%clk 0:00:42.8]} 23. Qf7
{[%clk 0:00:15.1]} 23... Qf6 {[%clk 0:00:38.9]} 24. Qh5 {[%clk 0:00:15.6]} 24...
Rh8 {[%clk 0:00:36.3]} 25. Qe2 {[%clk 0:00:14.8]} 25... Nf4 {[%clk 0:00:32.6]}
26. Qf3 {[%clk 0:00:14.2]} 26... Qe5 {[%clk 0:00:23.5]} 27. h3 {[%clk
0:00:13.7]} 27... Rg8 {[%clk 0:00:19.6]} 28. g4 {[%clk 0:00:13.6]} 28... Rh8
{[%clk 0:00:13.9]} 29. Qe3 {[%clk 0:00:13.6]} 29... Nxh3+ {[%clk 0:00:10.8]} 30.
Kg2 {[%clk 0:00:13]} 30... Nf4+ {[%clk 0:00:09.3]} 31. Kf3 {[%clk 0:00:12.7]}
0-1